Department Family,Entity,Date,Expense Type,Expense Area,Supplier,Transaction Number,AP Amount,VAT Registration Number,Purchase Invoice Number,
Department of Health,Bridgewater Community Healthcare NHS Foundation Trust,31-Mar-23,Lease Rents,Europa Point,GREENSTONE NOBLE PROPCO 1 LIMITED,45946335,"75,000.00",,320,
Department of Health,Bridgewater Community Healthcare NHS Foundation Trust,31-Mar-23,Independent Sector,Intermediate Care Bed Based Team - Warrington,PHOENIX HEALTH WARRINGTON LTD,45957718,"44,031.99",,0007QUARTER4 202223,
Department of Health,Bridgewater Community Healthcare NHS Foundation Trust,31-Mar-23,Legal / Prof Fees,General Management,HEMPSONS,45957757,"31,130.05",238507161,75022661,
Department of Health,Bridgewater Community Healthcare NHS Foundation Trust,31-Mar-23,Lease Rents,Orford Park,COMMUNITY HEALTH PARTNERSHIPS LTD,45957812,"25,804.03",GB782562113,0060284160,
Department of Health,Bridgewater Community Healthcare NHS Foundation Trust,31-Mar-23,Lease Rents,Widnes HCRC,COMMUNITY HEALTH PARTNERSHIPS LTD,45995195,"25,973.53",GB782562113,0060217611,
Department of Health,Bridgewater Community Healthcare NHS Foundation Trust,31-Mar-23,Lease Rents,Widnes HCRC,COMMUNITY HEALTH PARTNERSHIPS LTD,45995196,"25,973.53",GB782562113,0060221450,
Department of Health,Bridgewater Community Healthcare NHS Foundation Trust,31-Mar-23,Lease Rents,Widnes HCRC,COMMUNITY HEALTH PARTNERSHIPS LTD,45995197,"25,973.53",GB782562113,0060226798,
Department of Health,Bridgewater Community Healthcare NHS Foundation Trust,31-Mar-23,Lease Rents,Widnes HCRC,COMMUNITY HEALTH PARTNERSHIPS LTD,45995198,"25,973.53",GB782562113,0060231428,
Department of Health,Bridgewater Community Healthcare NHS Foundation Trust,31-Mar-23,Lease Rents,Widnes HCRC,COMMUNITY HEALTH PARTNERSHIPS LTD,45995199,"25,973.53",GB782562113,0060235157,
Department of Health,Bridgewater Community Healthcare NHS Foundation Trust,31-Mar-23,Lease Rents,Widnes HCRC,COMMUNITY HEALTH PARTNERSHIPS LTD,46016120,"52,795.29",GB782562113,0060217614,
Department of Health,Bridgewater Community Healthcare NHS Foundation Trust,31-Mar-23,Lease Rents,Widnes HCRC,COMMUNITY HEALTH PARTNERSHIPS LTD,46016121,"52,795.29",GB782562113,0060221453,
Department of Health,Bridgewater Community Healthcare NHS Foundation Trust,31-Mar-23,Lease Rents,Widnes HCRC,COMMUNITY HEALTH PARTNERSHIPS LTD,46016123,"52,795.29",GB782562113,0060226801,
Department of Health,Bridgewater Community Healthcare NHS Foundation Trust,31-Mar-23,Lease Rents,Widnes HCRC,COMMUNITY HEALTH PARTNERSHIPS LTD,46016126,"52,795.29",GB782562113,0060231431,
Department of Health,Bridgewater Community Healthcare NHS Foundation Trust,31-Mar-23,Lease Rents,Widnes HCRC,COMMUNITY HEALTH PARTNERSHIPS LTD,46016127,"52,795.29",GB782562113,0060235160,
Department of Health,Bridgewater Community Healthcare NHS Foundation Trust,31-Mar-23,Lease Rents,Child Development Centre Orford,COMMUNITY HEALTH PARTNERSHIPS LTD,46016205,"55,358.38",GB782562113,0060284159,
Department of Health,Bridgewater Community Healthcare NHS Foundation Trust,31-Mar-23,Lease Rents,Bath Street,COMMUNITY HEALTH PARTNERSHIPS LTD,46016206,"51,614.04",GB782562113,0060284161,
Department of Health,Bridgewater Community Healthcare NHS Foundation Trust,31-Mar-23,Lease Rents,Widnes HCRC,COMMUNITY HEALTH PARTNERSHIPS LTD,46016207,"73,201.64",GB782562113,0060283823,
Department of Health,Bridgewater Community Healthcare NHS Foundation Trust,31-Mar-23,Legal / Prof Fees,General Management,HEMPSONS,46016261,"28,595.39",238507161,75008732,
Department of Health,Bridgewater Community Healthcare NHS Foundation Trust,31-Mar-23,Legal / Prof Fees,General Management,HEMPSONS,46016262,"38,971.43",238507161,75016361,
Department of Health,Bridgewater Community Healthcare NHS Foundation Trust,31-Mar-23,Rent,St Pauls Health Centre,ST PAULS HEALTH CENTRE,46046579,"59,606.60",,HC586,
Department of Health,Bridgewater Community Healthcare NHS Foundation Trust,31-Mar-23,External Consultancy Fees,Finance,QE FACILITIES LTD,46068805,"37,195.37",190566980,2210004559,
Department of Health,Bridgewater Community Healthcare NHS Foundation Trust,31-Mar-23,Rent,Warrington Wolves,WARRINGTON FC LTD,46070316,"31,350.00",152685258,25061,
Department of Health,Bridgewater Community Healthcare NHS Foundation Trust,31-Mar-23,Rent,Europa Point,AZURE PROPERTY CONSULTANTS LTD,46070321,"75,000.00",,663,
Department of Health,Bridgewater Community Healthcare NHS Foundation Trust,31-Mar-23,Drugs,Medicines Management,NHS BUSINESS SERVICES AUTHORITY,46154325,"93,163.13",GB 654 4347 29,1000076202,
Department of Health,Bridgewater Community Healthcare NHS Foundation Trust,31-Mar-23,SrvcsRecd-FoundationTrust,Pennine Dental,NORTHERN CARE ALLIANCE NHS FOUNDATION TRUST,46172880,"38,019.00",GB 6549 39786,N0008486,
Department of Health,Bridgewater Community Healthcare NHS Foundation Trust,31-Mar-23,Independent Sector,Dermatology Service - Warrington,DMC HEALTHCARE,46172914,"27,372.60",GB129886266,107920,
Department of Health,Bridgewater Community Healthcare NHS Foundation Trust,31-Mar-23,Independent Sector,Dermatology Service - Warrington,DMC HEALTHCARE,46173304,"60,020.55",GB129886266,107968,
Department of Health,Bridgewater Community Healthcare NHS Foundation Trust,31-Mar-23,Independent Sector,Dermatology Service - Warrington,DMC HEALTHCARE,46173307,"74,638.80",GB129886266,107967,
Department of Health,Bridgewater Community Healthcare NHS Foundation Trust,31-Mar-23,SrvcsRecd-FoundationTrust,Dental - Bolton,BOLTON NHS FOUNDATION TRUST,46173407,"56,379.00",GB654913421,0001065873,
Department of Health,Bridgewater Community Healthcare NHS Foundation Trust,31-Mar-23,Continence Products,Continence Adult - Warrington,ESSITY UK LTD,46175251,"63,282.13",GB 600 4331 06,6402088982,
Department of Health,Bridgewater Community Healthcare NHS Foundation Trust,31-Mar-23,Agency Medical Consultant,Dermatology Service - Warrington,GEOMETRIC RESULTS INTERNATIONAL LTD,46272060,"32,819.81",GB 108 2470 36,24682101,
Department of Health,Bridgewater Community Healthcare NHS Foundation Trust,31-Mar-23,Agency Medical Consultant,Dermatology Service - Warrington,GEOMETRIC RESULTS INTERNATIONAL LTD,46272103,"25,942.80",GB 108 2470 36,24684321,
Department of Health,Bridgewater Community Healthcare NHS Foundation Trust,31-Mar-23,Agency Medical Consultant,Flu Campaign,GEOMETRIC RESULTS INTERNATIONAL LTD,46272103,"34,488.01",GB 108 2470 36,24684321,
Department of Health,Bridgewater Community Healthcare NHS Foundation Trust,31-Mar-23,Continence Products,Continence Adult Halton,ESSITY UK LTD,46272111,"39,413.86",GB 600 4331 06,6402089018,
Department of Health,Bridgewater Community Healthcare NHS Foundation Trust,31-Mar-23,Agency Medical Consultant,Dermatology Service - Warrington,GEOMETRIC RESULTS INTERNATIONAL LTD,46272182,"26,321.77",GB 108 2470 36,24688761,
Department of Health,Bridgewater Community Healthcare NHS Foundation Trust,31-Mar-23,Agency Medical Consultant,Dermatology Service - Warrington,GEOMETRIC RESULTS INTERNATIONAL LTD,46272320,"36,745.23",GB 108 2470 36,24690991,
Department of Health,Bridgewater Community Healthcare NHS Foundation Trust,31-Mar-23,Computer Maintenance,Computing,IVANTI UK LTD,46357376,"27,324.61",GB813040971,90134278,
Department of Health,Bridgewater Community Healthcare NHS Foundation Trust,31-Mar-23,Legal / Prof Fees,General Management,HEMPSONS,46360552,"30,869.60",238507161,75023570,
Department of Health,Bridgewater Community Healthcare NHS Foundation Trust,31-Mar-23,Services Received - NHSTs,Halton Intermediate Care and Frailty Service,ST HELENS & KNOWSLEY HOSPITALS NHS TRUST,46376729,"27,169.80",654943996,16820538,
Department of Health,Bridgewater Community Healthcare NHS Foundation Trust,31-Mar-23,Independent Sector,Dermatology Service - Warrington,DMC HEALTHCARE,46388347,"31,808.70",GB129886266,107944,
Department of Health,Bridgewater Community Healthcare NHS Foundation Trust,31-Mar-23,Independent Sector,Dermatology Service - Warrington,DMC HEALTHCARE,46388351,"28,975.50",GB129886266,107945,
